Cogmind - Beta 10.1 @@@ ROGUE MODE // 2020.09.22 @ 07:57:42 Player: spruce (@macklemurr) Result: Destroyed by G-34 Mercenary with Small Laser Performance ------------- Evolutions (0) 0 Regions Visited (4) 800 Robots Destroyed (28) 140 Value Destroyed (644) 644 Prototype IDs (0) 0 Alien Tech Used (0) 0 Bonus (0) 0 TOTAL SCORE: 1584 Bonus ------- None Cogmind --------- Core Integrity 0/250 Matter 262/300 Energy 263/265 System Corruption 0% Temperature Cool (12) Movement Walking (150) Ox1 Location -9/Mines Parts ------- > --- POWER (1) -------- Improved Ion Engine > --- PROPULSION (2) --- Aluminum Leg Aluminum Leg > --- UTILITY (2) ------ Large Storage Unit Weapon Shielding > --- WEAPON (2) ------- Heavy Assault Rifle Heavy Assault Rifle > --- INVENTORY (10) --- Light Nuclear Core Large Storage Unit Large Storage Unit Medium Matter Pod (100) Compact Matter Pod (150) Light Assault Rifle Grenade Launcher Grenade Launcher Peak State ------------ > --- POWER ------------ Improved Ion Engine > --- PROPULSION ------- Aluminum Leg Aluminum Leg > --- UTILITY ---------- Small Storage Unit Improved Terrain Scanner > --- WEAPON ----------- Heavy Assault Rifle Heavy Assault Rifle > --- INVENTORY -------- Improved Ion Engine Light Treads Light Treads EM Pulse Gun [Rating: 11] Favorites ----------- Power Improved Ion Engine Engine Improved Ion Engine Propulsion Aluminum Leg Treads Light Treads Leg Aluminum Leg Utility Weapon Shielding Device Improved Terrain Scanner Storage Large Storage Unit Protection Weapon Shielding Weapon Heavy Assault Rifle Ballistic Gun Heavy Assault Rifle Launcher Grenade Launcher Build | -11 -10 -10 -10 -9 ------- Run | Scr Mat Min Exi Min Slots Evolved . | . . . . . Power . | . . . . . Propulsion . | . . . . . Utility . | . . . . . Weapon . | . . . . . Parts Attached 26 | 7 8 5 2 4 Power 3 | 1 1 1 . . Engine 3 | 1 1 1 . . Core . | . . . . . Reactor . | . . . . . Propulsion 8 | 2 3 2 . 1 Treads 1 | . 1 . . . Leg 7 | 2 2 2 . 1 Wheel . | . . . . . Hover . | . . . . . Flight . | . . . . . Utility 6 | 2 1 1 1 1 Device 1 | 1 . . . . Storage 3 | 1 . . 1 1 Processor . | . . . . . Hackware . | . . . . . Protection 2 | . 1 1 . . Artifact . | . . . . . Weapon 9 | 2 3 1 1 2 Energy Gun . | . . . . . Energy Cannon . | . . . . . Ballistic Gun 7 | 2 3 . 1 1 Ballistic Cannon . | . . . . . Launcher 2 | . . 1 . 1 Special Weapon . | . . . . . Impact Weapon . | . . . . . Slashing Weapon . | . . . . . Piercing Weapon . | . . . . . Special Melee Weapon . | . . . . . Unidentified Prototypes . | . . . . . Parts Lost 6 | . 3 2 . 1 Power 1 | . . 1 . . Propulsion 3 | . 2 . . 1 Utility 1 | . . 1 . . Weapon 1 | . 1 . . . Highest Loss Streak 2 | . 2 2 . 1 Average Slot Usage (%) 99 | . 97 97 100 99 Engine 13 | . 14 13 14 14 Leg 27 | . 25 28 28 27 Device 1 | . 5 . . . Storage 14 | . 14 14 14 14 Protection 12 | . 8 12 14 14 Ballistic Gun 24 | . 27 24 25 19 Launcher 3 | . . 3 2 8 Naked Turns . | . . . . . Heaviest Build 30 | 12 18 18 30 30 Greatest Support 20 | 20 20 20 20 20 Greatest Overweight (x) 5 | 1 5 1 1 1 Average Overweight (x) . | . . . . 1 Largest Inventory Capacity 10 | 6 6 6 10 10 Average Capacity 8 | 5 6 6 9 10 Most Carried 8 | 4 6 6 7 8 Average Carried 5 | 2 5 5 5 6 Final Capacity 10 | 6 6 6 10 10 Final Carried 8 | 4 5 6 7 8 Class Distribution -------------------- 100% | Mutant Dominant Class ---------------- Mutant | -10/Materials Mutant | -10/Mines Mutant | -10/Exiles Mutant | -9/Mines Resources | -11 -10 -10 -10 -9 ----------- Run | Scr Mat Min Exi Min Matter Collected 918 | 303 378 82 20 135 Remotely . | . . . . . Salvage Created 756 | 56 499 89 . 112 Parts 69 | 9 44 5 . 11 Haulers Intercepted 1 | . 1 . . . Recyclers Shooed 1 | 1 . . . . Parts Field Recycled . | . . . . . Retrieved Matter . | . . . . . Parts Self-Destructed . | . . . . . Prevented . | . . . . . Kills | -11 -10 -10 -10 -9 ------- Run | Scr Mat Min Exi Min Combat Hostiles Destroyed 22 | . 12 2 . 8 Guns 18 | . 12 2 . 4 AOE 4 | . . . . 4 Classes Destroyed 6 | 1 5 . . . Worker 1 | . 1 . . . Tunneler 3 | 3 . . . . Hauler 1 | . 1 . . . Watcher 1 | . 1 . . . Swarmer 9 | . 3 . . 6 Grunt 13 | . 9 2 . 2 Best Kill Streak 8 | 3 8 2 . 3 Combat Bots Only 6 | . 6 2 . 3 Max Kills in Single Turn 3 | 1 1 1 . 3 Gunslinging . | . . . . . Exploded 3 | . . . . 3 Melee . | . . . . . Uniques/NPCs Destroyed . | . . . . . Combat | -11 -10 -10 -10 -9 -------- Run | Scr Mat Min Exi Min Damage Taken 1401 | . 801 282 . 318 Core 258 | . 181 12 . 65 Absorbed by Shields . | . . . . . Core Remaining (%) 100 | 100 . . . . Volleys Fired 82 | 6 51 7 . 18 Largest 2 | 2 2 2 . 2 Hottest 46 | 40 46 46 . 46 Shots Fired 156 | 12 100 14 . 30 Gun 152 | 12 100 14 . 26 Cannon . | . . . . . Launcher 4 | . . . . 4 Special . | . . . . . Kinetic 152 | 12 100 14 . 26 Thermal . | . . . . . Explosive 4 | . . . . 4 Electromagnetic . | . . . . . Robot Hit Streak 9 | 2 9 4 . 3 Robot Miss Streak 3 | 2 3 2 . 3 Penetration Max . | . . . . . Secondary Targets 6 | . 5 . . 1 Max Gunslinging Chain 1 | . 1 . . 1 Shots Hit Robots 96 | 4 71 8 . 13 Core Hits 42 | 3 23 4 . 12 Critical Hits . | . . . . . Critical Kills . | . . . . . Critical Parts Destroyed . | . . . . . Melee Attacks . | . . . . . Impact . | . . . . . Slashing . | . . . . . Piercing . | . . . . . Sneak Attacks . | . . . . . Combat Hostiles . | . . . . . Follow-up Attacks . | . . . . . Damage Inflicted 1637 | 50 1024 91 . 472 Guns 1391 | 50 1024 91 . 226 Cannons . | . . . . . Explosions 246 | . . . . 246 Melee . | . . . . . Ramming . | . . . . . Kinetic 1391 | 50 1024 91 . 226 Thermal . | . . . . . Explosive 246 | . . . . 246 Electromagnetic . | . . . . . Impact . | . . . . . Slashing . | . . . . . Piercing . | . . . . . Highest Corruption . | . . . . . Average Corruption . | . . . . . Corruption Purged . | . . . . . Overload Shots . | . . . . . Overflow Damage . | . . . . . Projectiles . | . . . . . Explosions . | . . . . . Melee . | . . . . . Knockbacks . | . . . . . Impact . | . . . . . Kinetic . | . . . . . Secondary . | . . . . . Self-Inflicted Damage . | . . . . . Shots . | . . . . . Rammed . | . . . . . Targets Rammed . | . . . . . Kicked . | . . . . . Crushed . | . . . . . Highest Temperature 44 | . 44 16 . 12 Average Temperature 13 | . 15 6 . 6 Received Heat Transfer 498 | . 369 54 . 75 Siege Activations . | . . . . . Robots Corrupted . | . . . . . Combat Hostiles . | . . . . . Parts Fried . | . . . . . Impact Corruptions . | . . . . . Robots Melted . | . . . . . Combat Hostiles . | . . . . . Parts Melted . | . . . . . Heat Transferred . | . . . . . Parts Sabotaged . | . . . . . Parts Stolen . | . . . . . Parts Stripped . | . . . . . Power Chain Reactions . | . . . . . Missiles Intercepted . | . . . . . Alert | -11 -10 -10 -10 -9 ------- Run | Scr Mat Min Exi Min Peak Influence 232 | 15 232 120 . 195 Initial 90 | . 9 90 . . Average 79 | 4 78 118 . 83 Maximum Alert Level 1 | . 1 . . . Low Security (%) 98 | 100 96 100 . 100 Level 1 1 | . 3 . . . Level 2 . | . . . . . Level 3 . | . . . . . Level 4 . | . . . . . Level 5 . | . . . . . High Security . | . . . . . Max Security . | . . . . . Squads Dispatched 3 | . 3 . . . Investigation 1 | . 1 . . . Extermination . | . . . . . Reinforcement 2 | . 2 . . . Assault . | . . . . . Garrison . | . . . . . Intercept . | . . . . . Construction Impeded . | . . . . . Haulers Reinforced . | . . . . . Stealth | -11 -10 -10 -10 -9 --------- Run | Scr Mat Min Exi Min Distress Signals 4 | . 4 . . . Communications Jammed . | . . . . . Distress Signals . | . . . . . Times Spotted 37 | . 18 7 . 12 Peak Tracking Total 6 | . 5 6 . 4 Tactical Retreats 1 | . . . . 1 Traps | -11 -10 -10 -10 -9 ------- Run | Scr Mat Min Exi Min Traps Triggered 1 | . 1 . . . Indirectly . | . . . . . Trap Hack Attempts . | . . . . . Triggered . | . . . . . Disarmed . | . . . . . Reprogrammed . | . . . . . Reused . | . . . . . Traps Extracted . | . . . . . Installed . | . . . . . Triggered . | . . . . . Machines | -11 -10 -10 -10 -9 ---------- Run | Scr Mat Min Exi Min Machines Disabled 2 | . 1 . . 1 Max in Single Turn 1 | . 1 . . 1 Machines Sabotaged . | . . . . . Garrisons Compromised . | . . . . . Overloaded Fab Kills . | . . . . . Fab Network Shutdowns . | . . . . . Hacking | -11 -10 -10 -10 -9 --------- Run | Scr Mat Min Exi Min Machines Accessed 8 | . 5 . 3 . Terminals 4 | . 4 . . . Fabricators . | . . . . . Repair Stations . | . . . . . Recycling Units 1 | . 1 . . . Scanalyzers . | . . . . . Garrison Access . | . . . . . Total Hacks 24 | . 15 . 9 . Successful 16 | . 7 . 9 . Failed 8 | . 8 . . . Catastrophic . | . . . . . Database Lockouts . | . . . . . Manual 12 | . 12 . . . Terminals 14 | . 14 . . . Fabricators . | . . . . . Repair Stations . | . . . . . Recycling Units 1 | . 1 . . . Scanalyzers . | . . . . . Garrison Access . | . . . . . Terminal Hacks 12 | . 3 . 9 . Record 9 | . . . 9 . Recycling Unit Index 1 | . 1 . . . Zone Layout 2 | . 2 . . . Fabricator Hacks . | . . . . . Repair Station Hacks . | . . . . . Recycling Unit Hacks . | . . . . . Scanalyzer . | . . . . . Garrison Access Hacks . | . . . . . Unauthorized Hacks 4 | . 4 . . . Terminals 3 | . 3 . . . Track 2 | . 2 . . . Botnet 1 | . 1 . . . Fabricators . | . . . . . Repair Stations . | . . . . . Recycling Units 1 | . 1 . . . Tunnel 1 | . 1 . . . Scanalyzers . | . . . . . Garrison Access . | . . . . . Data Cores Recovered . | . . . . . Used . | . . . . . Hacking Detections 4 | . 4 . . . Full Trace Events . | . . . . . Feedback Events . | . . . . . Feedback Blocked . | . . . . . Robot Schematics Acquired . | . . . . . Robots Built . | . . . . . Matter . | . . . . . Time . | . . . . . Total Robot Build Rating . | . . . . . Part Schematics Acquired . | . . . . . Parts Built . | . . . . . Matter . | . . . . . Time . | . . . . . Total Part Build Rating . | . . . . . Parts Repaired . | . . . . . Time . | . . . . . Parts Recycled . | . . . . . Recycled Matter . | . . . . . Retrieved Matter . | . . . . . Retrieved Components . | . . . . . Parts Scanalyzed . | . . . . . Part Schematics Acquired . | . . . . . Parts Damaged . | . . . . . Bothacking | -11 -10 -10 -10 -9 ------------ Run | Scr Mat Min Exi Min Used RIF Installer . | . . . . . Robots Hacked . | . . . . . Non-combat . | . . . . . Combat . | . . . . . Robot Hacks Applied . | . . . . . Relay Couplers Released . | . . . . . Robots Rewired . | . . . . . Allies Hacked . | . . . . . Hacks Repelled . | . . . . . Allies | -11 -10 -10 -10 -9 -------- Run | Scr Mat Min Exi Min Total Allies . | . . . . . Largest Group . | . . . . . Highest-Rated Group . | . . . . . Highest-Rated Ally . | . . . . . Total Orders . | . . . . . Ally Attacks . | . . . . . Total Damage . | . . . . . Kills . | . . . . . Allies Corrupted . | . . . . . Allies Melted . | . . . . . Intel | -11 -10 -10 -10 -9 ------- Run | Scr Mat Min Exi Min Robot Analysis Total . | . . . . . Derelict Logs Recovered . | . . . . . Drone Launches . | . . . . . Drone Recoveries . | . . . . . Exploration | -11 -10 -10 -10 -9 ------------- Run | Scr Mat Min Exi Min Turns Passed 2256 | 121 577 205 791 562 Spaces Moved 1314 | 81 243 136 540 314 Core 16 | 12 4 . . . Treads . | . . . . . Legs 1298 | 69 239 136 540 314 Wheels . | . . . . . Hover . | . . . . . Flight . | . . . . . Fastest Speed 50 | 50 120 120 120 150 Average Speed 137 | 110 123 120 145 150 Slowest Speed 300 | 120 300 150 150 150 Overloaded Moves . | . . . . . Propulsion Burnouts . | . . . . . Robots Hopped . | . . . . . Cave-ins Triggered . | . . . . . Exploration Rate (%) 48 | 5 42 36 91 70 Regions Visited 4 Branch Regions 3 Pre-discovered Areas 2 | . 1 . 1 . Known Exits Taken . | . . . . . Unknown Exits Taken 4 | 1 1 1 1 . Scrap Searched 1 | . . 1 . . Spaces Dug . | . . . . . Terrain Destroyed 21 | . . . . 21 Melee . | . . . . . Projectile . | . . . . . AOE 21 | . . . . 21 Terrain Rammed . | . . . . . Walls Destroyed . | . . . . . Machines Disabled . | . . . . . Actions | -11 -10 -10 -10 -9 --------- Run | Scr Mat Min Exi Min Total 1605 | 97 422 162 548 376 Wait 159 | . 106 14 1 38 Move 1310 | 80 242 135 539 314 Hop . | . . . . . Pick Up 17 | 4 7 1 3 2 Fast Attach 12 | 7 5 . . . Attach 6 | . 3 2 . 1 Detach . | . . . . . Swap 8 | . . 3 2 3 Drop 11 | . 8 . 3 . Fire 82 | 6 51 7 . 18 Melee . | . . . . . Ram . | . . . . . Kick . | . . . . . Crush . | . . . . . Escape Stasis . | . . . . . Rewire . | . . . . . Trap . | . . . . . Miscellaneous . | . . . . . Route ------- -11/Scrapyard -10/Materials (discovered 3 exits: [*Mat x2] / [*Min]) -10/Mines (discovered 2 exits: [*Mat] / *Exi) -10/Exiles (discovered 2 exits: [*Min x2]) -9/Mines (discovered 1 exit: [*Mat]) History --------- Turn | Location | Event 32 | -11/Scrapyard | Discovered new exit (range 15) 122 | -11/Scrapyard | Entered Materials 312 | -10/Materials | Build established: Mutant 390 | -10/Materials | Discovered new exit (range 12) 397 | -10/Materials | Discovered new exit (range 17) 552 | -10/Materials | Core integrity fell below 50% 648 | -10/Materials | Discovered new exit (range 3) 699 | -10/Materials | Entered Mines 725 | -10/Mines | Discovered new exit (range 11) 848 | -10/Mines | Assembled infested the area 896 | -10/Mines | Deemed a non-threat by the Exiles lab entrance 896 | -10/Mines | Discovered new exit (range 5) 904 | -10/Mines | Entered Exiles 922 | -10/Exiles | Discovered new exit (range 14) 938 | -10/Exiles | Met 8R-AWN 961 | -10/Exiles | Met EX-HEX 1044 | -10/Exiles | Met EX-DEC 1072 | -10/Exiles | Visited The Gauntlet 1339 | -10/Exiles | Learned location of Zion (-6) 1369 | -10/Exiles | Met EX-BIN 1585 | -10/Exiles | Discovered new exit (range 15) 1695 | -10/Exiles | Entered Mines 1709 | -9/Mines | Met a Derelict bent on vengeance 1716 | -9/Mines | Core integrity fell below 20% 2237 | -9/Mines | Discovered new exit (range 9) 2257 | -9/Mines | Destroyed by G-34 Mercenary with Small Laser Last Messages --------------- 01784_ U-05 Engineer builds a Wall. 01784_ R-06 Scavenger collects Lgt. Ion Engine. 01786_ U-05 Engineer lays Concrete. 01789_ R-06 Scavenger collects Lgt. Assault Rifle. 01801_ Acquired 10 matter. 01804_ Acquired 12 matter. 01806_ Acquired 10 matter. 01808_ K-01 Serf collects debris. 01908_ Extracted 23 matter. 01911_ Acquired Com. Matter Pod. 01944_ K-01 Serf collects debris. 02071_ Laser Drill disabled. 02075_ G-34 Mercenary destroyed. 02091_ G-47 Trooper destroyed. 02094_ Acquired 18 matter. 02097_ Acquired Lgt. Nuclear Core. 02107_ Acquired 18 matter. 02112_ U-05 Engineer lays Concrete. 02186_ K-01 Serf collects debris. 02237_ EXIT=FOUND Map ----- +----------------------------------------------------+ | ?????????# ### ###????????????# ## # | | ?????????# ### #????????????# #### | | ?????????# #????????????## #??? | | ?????????### ### #?????????????## #??? | | ??????????## ### #??????????????# #??? | | ?????????## # ##?????????????# #??? | | ???????### ##???#######??# #??? | | ??????## #??## ##?# #??? | | ?????## #?## #?# ###? | | ??#### ##?# #?# #? | | ?## ##??# #?# #? | | ?# #???# #??## #? | | ?# ##????# #?????# ## | | ?## ####?????# ##?????# | | ??# #????????# = #??????# | | ??# #####????# [#??????##### | | ??## ###### ##??????### | | ???###### #?????## | | ????????## % ##????# | | ?????????## ####### ##???# | | ??????????### ###?????# #???## | | ????????????# #???????# #???## | | ????????????# #???????### ##??## | | ????????????# #?????????# ###### = | | ????????????# #?????????# = | | ????????????# @#?????# ########= # | | ???###""##??# #?????# ### #????## # | | ???# X ??# #?????????### #?????# # | | ??## ###g #???????????? #?????# # | | ?# ##gg#???????????? #?????# # | | ?# #???????????? #?????# # | | ?# #####???????????? #?????# # | | ?# #???????????????? #?????# # | | ?# #?????????????????#?????# # | | ?# < #??????????????????????? # | | ?# #??????????????????????? ## | | ?# #??????????????????????? ?? | | ?# #??????????????????????? ?? | | ?# #??????????????????????? ?? | | ?# ????????????????????????? ?? | | ?# ???????????????????????????? | | ?##########???????????????????????????? | | ??????????????????????????????????????? | | ??????????????????????????????????????? | | ??????????????????????????????????????? | | ??????????????????????????????????????? | | ??????????????????????????????????????? | | ??????????????????????????????????????? | | ??????????????????????????????????????? | | ??????????????????????????????????????? | +----------------------------------------------------+ Best States ------------- Heat Dissipation 25 Energy Generation 12 Energy Capacity 265 Matter Stores 300 Matter Capacity 300 Sight Range 16 Terrain Scan Range 16 Terrain Scan Density 10 Weapon Shielding 33 Evasion (%) 50 Item Schematics ----------------- None Robot Schematics ------------------ None Fabricated ------------ Nothing Alien Tech Used ----------------- None Achievements -------------- None Challenges ------------ None Game ------ Seed CompactVisualSuperbattery Manual? 0 Play Time 00:16:50 Cumulative 185.5 hours Start 2020.09.22 @ 07:38:39 End 2020.09.22 @ 07:57:42 Sessions 1 Manual Loads 0 Difficulty Rogue Special Mode None Game No. 233 Rogue 233 Adventurer 0 Explorer 0 Win Type - Total 10 Types 2/3/0/1/1/3/0/0/0 Lore% 90 Gallery% 90 Achievement% 72 Wizard Run 0 Options --------- ASCII 0 Keyboard 0 Movement Numpad Keybinds 0 Fullscreen 1 Font 24/Smallcaps Map View 76x50 Tactical HUD 1 Map Filters NONE Filters NONE Steam 1 RUN: 772c388c-bd2b-4297-8d69-5df9897949cc